bitfinex/quotes_SOLUSD_20241127
["timestamp","ask_amount","ask_price","bid_price","bid_amount"]
[1732732423513,20.0,239.45,239.41,12.50421714]
[1732732423908,22.5057,239.45,239.41,12.50421714]
[1732732425224,22.5057,239.45,239.39,0.4970053]
[1732732425225,20.0,239.47,239.43,12.50421714]
[1732732425415,23.776884,239.49,239.43,12.50421714]
[1732732426328,2.5054,239.48,239.41,12.50421714]
[1732732426634,23.776884,239.47,239.41,12.50421714]
[1732732427131,23.776884,239.47,239.39,0.4970053]
[1732732427428,23.776884,239.45,239.39,13.00122244]
[1732732429120,26.282684,239.45,239.39,13.00122244]
[1732732429524,23.776884,239.43,239.39,0.4970053]
[1732732432314,26.282884,239.43,239.39,0.4970053]
[1732732435234,2.5058,239.45,239.39,13.00122244]
[1732732435533,22.5058,239.45,239.39,13.00122244]
[1732732436342,12.50421714,239.48,239.39,13.00122244]
[1732732436343,26.282384,239.47,239.41,12.50421714]
[1732732437035,2.5055,239.47,239.43,12.50421714]
[1732732437217,2.5054,239.49,239.43,12.50421714]
[1732732438318,26.282284,239.48,239.43,12.50421714]
[1732732439545,26.282284,239.48,239.4,4.177]
[1732732439836,26.282284,239.48,239.43,12.50421714]
[1732732440250,20.0,239.47,239.43,12.50421714]
[1732732440543,15.00941714,239.5,239.43,12.50421714]
[1732732440721,2.5052,239.5,239.43,12.50421714]
[1732732441344,2.505,239.52,239.48,12.50421714]
[1732732441836,2.5048,239.54,239.48,12.50421714]
[1732732442836,23.776884,239.53,239.48,12.50421714]
[1732732443142,2.505,239.52,239.48,12.50421714]
[1732732443342,2.505,239.52,239.39,10.9400053]
[1732732443343,23.776884,239.49,239.39,0.4970053]
[1732732443545,36.28110114,239.49,239.41,12.50421714]
[1732732444852,12.50421714,239.51,239.43,12.50421714]
[1732732445034,23.776884,239.5,239.43,12.50421714]
[1732732445344,26.282084,239.5,239.43,12.50421714]
[1732732445840,26.282084,239.5,239.39,0.4970053]
[1732732445841,2.505,239.52,239.45,12.50421714]
[1732732446256,23.776884,239.51,239.45,12.50421714]
[1732732447148,23.776884,239.52,239.45,12.50421714]
[1732732447323,23.776884,239.52,239.45,16.68031714]
[1732732447519,12.50421714,239.56,239.48,12.50421714]
[1732732447724,12.50421714,239.58,239.5,12.50421714]
[1732732447924,12.50421714,239.58,239.45,4.1761]
[1732732447925,12.50421714,239.6,239.53,12.50421714]
[1732732449144,12.50421714,239.54,239.48,22.3219]
[1732732449844,12.50421714,239.56,239.48,34.82611714]
[1732732450950,23.776884,239.59,239.52,12.50421714]
[1732732451167,20.0,239.56,239.52,12.50421714]
[1732732451443,20.0,239.55,239.5,12.50421714]
[1732732451945,20.0,239.55,239.48,34.82611714]
[1732732453039,20.0,239.55,239.48,39.00171714]
[1732732453738,23.776884,239.59,239.52,12.50421714]
[1732732453938,12.50421714,239.6,239.52,12.50421714]
[1732732454143,12.50421714,239.62,239.54,12.50421714]
[1732732454726,15.00771714,239.66,239.6,12.50421714]
[1732732454950,15.00771714,239.66,239.58,12.50421714]
[1732732455124,12.50421714,239.64,239.56,12.50421714]
[1732732455328,15.00771714,239.66,239.58,12.50421714]
[1732732455747,15.00771714,239.66,239.57,21.8338]
[1732732456030,12.50421714,239.62,239.55,12.50421714]
[1732732457051,20.0,239.59,239.55,12.50421714]
[1732732457351,20.0,239.59,239.52,21.6631]
[1732732457352,22.5043,239.59,239.52,21.6631]
[1732732460144,20.0,239.59,239.53,12.50421714]
[1732732460460,2.5036,239.65,239.58,12.50421714]
[1732732461458,12.50421714,239.64,239.56,12.50421714]
[1732732461658,15.00801714,239.64,239.56,12.50421714]
[1732732461859,2.5038,239.64,239.58,12.50421714]
[1732732462033,23.776884,239.65,239.58,12.50421714]
[1732732462353,15.00781714,239.66,239.55,4.1744]
[1732732462354,2.5036,239.66,239.6,12.50421714]
[1732732462551,2.5034,239.67,239.6,12.50421714]
[1732732462863,2.5033,239.69,239.62,12.50421714]
[1732732463062,2.46566954,239.75,239.69,22.6968]
[1732732463352,12.50421714,239.91,239.74,12.50421714]
[1732732463538,12.50421714,239.89,239.78,12.50421714]
[1732732463739,12.50421714,239.84,239.76,12.50421714]
[1732732463945,12.50421714,239.84,239.74,12.50421714]
[1732732464341,12.50421714,239.82,239.74,12.50421714]
[1732732464545,12.50421714,239.82,239.73,12.50421714]
[1732732464957,12.50421714,239.82,239.7,4.1718]
[1732732465132,12.50421714,239.8,239.71,12.50421714]
[1732732465750,12.50421714,239.8,239.69,22.6968]
[1732732465751,12.50421714,239.78,239.69,35.20101714]
[1732732466356,23.776884,239.75,239.69,6.2649]
[1732732466546,12.50421714,239.74,239.65,16.67681714]
[1732732466936,12.50421714,239.74,239.67,12.50421714]
[1732732467347,23.776884,239.75,239.67,12.50421714]
[1732732468248,23.776884,239.75,239.69,12.50421714]
[1732732469132,23.776884,239.76,239.69,12.50421714]
[1732732469340,12.50421714,239.78,239.71,12.50421714]
[1732732469542,23.776884,239.77,239.71,12.50421714]
[1732732472559,23.776884,239.78,239.72,12.50421714]
[1732732473445,23.776884,239.78,239.71,12.50421714]
[1732732473649,23.776884,239.78,239.72,12.50421714]
[1732732475038,20.0,239.77,239.75,12.50421714]
[1732732475764,20.0,239.79,239.75,12.50421714]
[1732732476148,23.776884,239.77,239.73,12.50421714]
[1732732476351,23.776884,239.77,239.71,12.50421714]
[1732732477367,23.776884,239.77,239.72,12.50421714]
[1732732479265,2.5021,239.8,239.75,12.50421714]
[1732732479469,12.50421714,239.85,239.78,12.50421714]
[1732732479651,15.00551714,239.87,239.79,12.50421714]
[1732732480671,12.50421714,239.85,239.77,12.50421714]
[1732732480972,20.0,239.83,239.79,12.50421714]
[1732732481682,2.5013,239.87,239.81,12.50421714]
[1732732481850,2.5012,239.89,239.83,12.50421714]
[1732732482174,2.5012,239.89,239.76,12.50421714]
[1732732482175,2.5012,239.89,239.84,12.50421714]
[1732732482350,15.00521714,239.91,239.84,12.50421714]
[1732732482550,12.50421714,239.93,239.86,12.50421714]
[1732732482752,15.00451714,239.97,239.89,12.50421714]
[1732732483273,12.50421714,239.91,239.83,12.50421714]
[1732732483474,12.50421714,239.87,239.79,12.50421714]
[1732732484153,23.776884,239.86,239.79,12.50421714]
[1732732484361,20.0,239.83,239.79,12.50421714]
[1732732484581,23.776884,239.86,239.79,12.50421714]
[1732732484758,26.278284,239.86,239.79,12.50421714]
[1732732485373,20.0,239.83,239.78,12.50421714]
[1732732486454,22.5018,239.83,239.78,12.50421714]
[1732732487248,22.5018,239.83,239.76,12.50421714]
[1732732487450,23.776884,239.82,239.74,12.50421714]
[1732732487754,36.28110114,239.82,239.74,12.50421714]
[1732732488793,38.78300114,239.82,239.74,12.50421714]
[1732732490373,38.78300114,239.82,239.74,16.67531714]
[1732732491178,2.5008,239.92,239.8,12.50421714]
[1732732491469,23.776884,239.88,239.8,12.50421714]
[1732732492255,23.776884,239.86,239.8,12.50421714]
[1732732492859,12.50421714,239.89,239.82,12.50421714]
[1732732493180,23.776884,239.88,239.82,12.50421714]
[1732732494475,26.278184,239.88,239.82,12.50421714]
[1732732494855,2.5013,239.88,239.82,12.50421714]
[1732732495061,20.0,239.88,239.85,12.50421714]
[1732732495256,20.0,239.88,239.83,12.50421714]
[1732732496583,23.776884,239.87,239.81,12.50421714]
[1732732497774,26.278284,239.87,239.81,12.50421714]
[1732732498190,38.78250114,239.87,239.79,12.50421714]
[1732732498368,12.50421714,239.85,239.77,12.50421714]
[1732732498570,36.28110114,239.84,239.77,12.50421714]
[1732732499079,12.50421714,239.82,239.75,12.50421714]
[1732732499783,8.7547,239.87,239.75,12.50421714]
[1732732499784,20.0,239.81,239.77,12.50421714]
[1732732500268,23.776884,239.85,239.79,12.50421714]
[1732732500473,23.776884,239.85,239.81,12.50421714]
[1732732500866,12.50421714,239.84,239.76,12.50421714]
[1732732501178,23.776884,239.85,239.78,12.50421714]
[1732732501380,23.776884,239.85,239.8,12.50421714]
[1732732501581,70.0,239.94,239.75,4.1709]
[1732732501582,15.00521714,239.9,239.84,12.50421714]
[1732732501785,15.00501714,239.92,239.84,12.50421714]
[1732732502970,23.776884,239.91,239.86,12.50421714]
[1732732503187,12.50421714,239.99,239.9,12.50421714]
[1732732503377,12.50421714,239.99,239.92,12.50421714]
[1732732503573,12.50421714,240.01,239.94,12.50421714]
[1732732503888,2.5,240.0,239.94,12.50421714]
[1732732504064,2.5,240.0,239.92,12.50421714]
[1732732504984,20.0,239.98,239.92,12.50421714]
[1732732505490,15.00411714,240.01,239.94,12.50421714]
[1732732506766,23.776884,240.0,239.94,12.50421714]
[1732732507363,23.776884,240.0,239.88,12.50421714]
[1732732507364,23.776884,240.03,239.98,12.50421714]
[1732732507685,20.0,240.03,239.96,12.50421714]
[1732732507873,20.0,240.01,239.96,12.50421714]
[1732732510506,23.776884,240.04,240.0,12.50421714]
[1732732510787,23.776884,240.07,240.0,12.50421714]
[1732732511089,23.776884,240.05,240.0,12.50421714]
[1732732511468,12.50421714,240.02,239.92,16.67211714]
[1732732511679,32.50421714,240.02,239.94,12.50421714]
[1732732511966,23.776884,240.03,239.96,12.50421714]
[1732732512583,26.276484,240.03,239.98,12.50421714]
[1732732512984,12.50421714,240.08,240.0,12.50421714]
[1732732513286,2.4989,240.11,240.04,12.50421714]
[1732732513761,2.4989,240.11,240.01,12.50421714]
[1732732514085,12.50421714,240.11,240.03,12.50421714]
[1732732514295,15.00301714,240.11,240.03,12.50421714]
[1732732514789,12.50421714,240.09,240.02,20.6755]
[1732732514977,2.4988,240.11,240.03,12.50421714]
[1732732515180,15.00301714,240.11,240.03,12.50421714]
[1732732515379,12.50421714,240.09,240.02,16.5093]
[1732732516272,12.50421714,240.07,239.99,12.50421714]
[1732732516986,12.50421714,240.03,239.96,15.145]
[1732732517288,12.50421714,240.01,239.93,12.50421714]
[1732732517482,12.50421714,240.01,239.93,16.67201714]
[1732732517695,23.776884,240.06,239.92,6.561]
[1732732517989,12.50421714,240.0,239.92,10.729]
[1732732519071,12.50421714,240.0,239.93,12.50421714]
[1732732519591,20.0,240.03,239.95,12.50421714]
[1732732519783,12.50421714,240.02,239.95,12.50421714]
[1732732521105,15.00391714,240.02,239.95,12.50421714]
[1732732521797,6.2481,240.07,239.92,6.561]
[1732732521798,12.50421714,240.07,239.99,12.50421714]
[1732732521999,6.2471,240.11,239.93,4.1678]
[1732732522000,12.50421714,240.03,239.95,12.50421714]
[1732732523689,12.50421714,240.03,239.93,12.50421714]
[1732732523991,12.50421714,240.01,239.93,16.67201714]
[1732732524290,12.50421714,240.01,239.93,12.50421714]
[1732732524669,12.50421714,240.01,239.93,16.67201714]
[1732732525689,12.50421714,240.01,239.92,6.561]
[1732732526000,12.50421714,239.97,239.92,6.561]
[1732732527691,26.276884,240.0,239.92,6.561]
[1732732528072,15.00431714,239.99,239.92,6.561]
[1732732529008,12.50421714,239.93,239.86,6.4673]
[1732732529300,12.50421714,239.89,239.81,12.50421714]
[1732732529486,12.50421714,239.89,239.81,16.67411714]
[1732732530209,12.50421714,239.91,239.83,12.50421714]
[1732732530498,26.277384,239.95,239.85,12.50421714]
[1732732530688,12.50421714,239.93,239.85,12.50421714]
[1732732531311,12.50421714,239.97,239.87,12.50421714]
[1732732531499,12.50421714,239.99,239.89,12.50421714]
[1732732531708,12.50421714,239.99,239.91,12.50421714]
[1732732532077,2.5,240.0,239.93,12.50421714]
[1732732532385,12.50421714,240.01,239.93,12.50421714]
[1732732532896,2.4998,240.02,239.93,12.50421714]
[1732732533103,12.50421714,240.03,239.95,12.50421714]
[1732732534301,15.00391714,240.03,239.95,16.67161714]
[1732732534507,15.00391714,240.03,239.95,4.1674]
[1732732534995,15.00391714,240.03,239.93,16.67191714]
[1732732535392,12.50421714,240.01,239.93,16.67191714]
[1732732539500,2.4996,240.03,239.93,16.67191714]
[1732732539501,15.00381714,240.03,239.93,16.67191714]
[1732732540993,12.50421714,239.99,239.92,10.5618]
[1732732541192,12.50421714,239.99,239.92,6.3938]
[1732732542512,2.5002,239.98,239.92,6.3938]
[1732732543901,15.00431714,239.99,239.92,6.3938]
[1732732549018,12.50421714,239.95,239.89,4.1684]
[1732732549188,12.50421714,239.91,239.86,22.2194]
[1732732549693,12.50421714,239.89,239.81,16.67401714]
[1732732549906,12.50421714,239.89,239.81,4.1698]
[1732732550207,80.0,239.59,239.58,46.96910424]
[1732732550419,5.0,239.44,239.39,0.4970053]
[1732732550708,20.0,239.41,239.4,0.95476787]
[1732732551090,20.0,239.41,239.32,12.50421714]
[1732732551091,29.1278544,239.41,239.32,12.50421714]
[1732732551290,20.02711294,239.4,239.32,12.50421714]
[1732732551486,39.93298434,239.39,239.32,12.50421714]
[1732732551685,40.88510742,239.38,239.32,12.50421714]
[1732732551886,40.88510742,239.38,239.29,5.0]
[1732732551887,51.00330988,239.37,239.36,12.50421714]
[1732732552085,56.34796249,239.37,239.36,12.50421714]
[1732732552312,9.53650309,239.37,239.36,12.50421714]
[1732732552509,23.98720413,239.37,239.36,12.50421714]
[1732732552714,20.91048384,239.37,239.36,12.50421714]
[1732732553094,0.95212308,239.37,239.36,12.50421714]
[1732732554118,0.95212308,239.37,239.35,4.1779]
[1732732554301,0.95212308,239.37,239.36,20.0]
[1732732558719,0.95212308,239.37,239.36,40.09663674]
[1732732561241,1.04144317,239.51,239.4,5.0]
[1732732561242,20.09663674,239.49,239.4,5.0]
[1732732561424,20.09663674,239.5,239.43,20.09663674]
[1732732561718,0.95212308,239.49,239.43,20.09663674]
[1732732562104,20.09663674,239.48,239.41,20.09663674]
[1732732562322,20.09663674,239.47,239.4,40.09663674]
[1732732562907,20.09663674,239.48,239.41,20.09663674]
[1732732563220,20.09663674,239.48,239.42,4.1767]
[1732732563431,20.09663674,239.46,239.38,4.1774]
[1732732563603,20.09663674,239.44,239.38,4.1774]
[1732732564006,20.09663674,239.46,239.39,20.09663674]
[1732732564221,0.95212308,239.48,239.45,20.09663674]
[1732732564406,0.95212308,239.48,239.46,20.09663674]
[1732732564808,0.95212308,239.48,239.47,20.09663674]
[1732732565425,0.95212308,239.48,239.47,24.27243674]
[1732732566818,0.95212308,239.48,239.47,24.97761759]
[1732732569818,0.95212308,239.48,239.47,48.75450159]
[1732732570531,2.308e-05,239.48,239.47,48.75450159]
[1732732571929,2.308e-05,239.48,239.47,124.38659115]
[1732732572131,2.308e-05,239.48,239.47,123.6814103]
[1732732572500,20.09663674,239.62,239.48,5.0]
[1732732572723,20.09663674,239.64,239.56,20.09663674]
[1732732572924,20.09663674,239.65,239.57,20.09663674]
[1732732573426,20.09663674,239.65,239.58,20.09663674]
[1732732573604,20.09663674,239.68,239.61,20.09663674]
[1732732574020,20.09663674,239.67,239.6,20.09663674]
[1732732574427,12.53716892,239.67,239.6,12.53716892]
[1732732574628,12.53716892,239.64,239.6,4.1735]
[1732732574834,12.53716892,239.61,239.56,4.1742]
[1732732575137,12.53716892,239.6,239.56,4.1742]
[1732732575333,12.53716892,239.61,239.56,4.1742]
[1732732576035,17.53716892,239.61,239.53,12.53716892]
[1732732576224,12.53716892,239.57,239.48,16.71286892]
[1732732576412,12.53716892,239.53,239.48,4.1757]
[1732732577125,12.53716892,239.55,239.48,4.1757]
[1732732577827,12.53716892,239.55,239.48,16.71286892]
[1732732578234,20.07981261,239.55,239.48,24.25551261]
[1732732578434,20.07981261,239.53,239.46,4.1759]
[1732732578852,20.07981261,239.55,239.48,20.07981261]
[1732732579034,5.0,239.56,239.5,20.07981261]
[1732732579534,25.07981261,239.56,239.48,20.07981261]
[1732732579839,25.07981261,239.56,239.49,4.1755]
[1732732580033,5.0,239.6,239.54,20.07981261]
[1732732580240,5.0,239.63,239.56,20.07981261]
[1732732580453,1.04081987,239.62,239.56,20.07981261]
[1732732580622,1.04081987,239.62,239.49,4.1755]
[1732732580623,25.07981261,239.6,239.52,20.07981261]
[1732732581051,20.07981261,239.62,239.54,20.07981261]
[1732732581840,20.07981261,239.62,239.54,24.25431261]
[1732732582727,25.07981261,239.66,239.58,20.07981261]
[1732732582931,20.07981261,239.6,239.52,20.07981261]
[1732732583639,2.5035,239.66,239.5,4.1753]
[1732732583640,5.0,239.63,239.56,20.07981261]
[1732732584035,5.0,239.63,239.57,4.1741]
[1732732584227,20.07981261,239.64,239.57,4.1741]
[1732732587243,5.0,239.65,239.57,4.1741]
[1732732587851,5.0,239.65,239.59,20.07981261]
[1732732588021,20.07981261,239.66,239.59,20.07981261]
[1732732588223,5.0,239.65,239.59,24.25351261]
[1732732588419,5.0,239.66,239.59,24.25351261]
[1732732588634,20.07981261,239.64,239.59,4.1737]
[1732732588832,20.07981261,239.64,239.55,20.07981261]
[1732732589037,20.07981261,239.64,239.57,4.174]
[1732732589322,20.07981261,239.62,239.53,20.07981261]
[1732732589525,5.0,239.61,239.53,20.07981261]
[1732732589723,20.07981261,239.62,239.53,20.07981261]
[1732732590153,5.0,239.61,239.54,4.1746]
[1732732590363,20.07981261,239.62,239.54,4.1746]
[1732732591254,20.07981261,239.58,239.51,21.9812]
[1732732591560,20.07981261,239.56,239.5,4.1752]
[1732732591854,20.07981261,239.52,239.44,15.714]
[1732732592436,20.07981261,239.52,239.45,24.25591261]
[1732732592734,27.58441261,239.56,239.47,20.07981261]
[1732732592945,25.07981261,239.58,239.49,20.07981261]
[1732732593743,27.58411261,239.58,239.49,20.07981261]
[1732732593952,1.04100531,239.57,239.49,20.07981261]
[1732732594151,20.07981261,239.52,239.45,24.25591261]
[1732732594854,20.07981261,239.54,239.45,24.25591261]
[1732732595755,20.07981261,239.54,239.47,24.25551261]
[1732732595962,20.07981261,239.56,239.49,20.07981261]
[1732732597641,20.07981261,239.56,239.47,4.1757]
[1732732597642,20.07981261,239.56,239.47,24.25551261]
[1732732598462,12.55066536,239.55,239.47,4.1757]
[1732732599246,17.55066536,239.57,239.48,12.55066536]
[1732732601067,17.55066536,239.57,239.49,4.1755]
[1732732601243,17.55066536,239.53,239.44,91.34608956]
[1732732601564,12.55066536,239.49,239.44,15.714]
[1732732601745,17.55066536,239.51,239.44,15.714]
[1732732601942,12.55066536,239.51,239.44,15.714]
[1732732602446,12.55066536,239.51,239.44,19.8903]
[1732732602654,12.55066536,239.53,239.45,12.55066536]
[1732732602846,5.0,239.52,239.45,12.55066536]
[1732732603043,5.0,239.52,239.45,16.72666536]
[1732732603251,12.55066536,239.53,239.45,16.72666536]
[1732732603949,5.0,239.54,239.47,12.55066536]
[1732732604262,6.04116727,239.54,239.47,12.55066536]
[1732732604766,6.04116726,239.54,239.47,12.55066536]
[1732732605166,6.04116726,239.54,239.47,16.72636536]
[1732732606467,8.54596726,239.54,239.47,4.1757]
[1732732606670,5.0,239.54,239.47,12.55066536]
[1732732606856,6.04117573,239.54,239.47,12.55066536]
[1732732607061,8.54597573,239.54,239.45,16.72686536]
[1732732607772,5.0,239.56,239.49,12.55066536]
[1732732608061,17.55066536,239.56,239.49,12.55066536]
[1732732609469,5.0,239.56,239.48,4.1757]
[1732732609648,5.0,239.56,239.49,12.55066536]
[1732732610063,32.55066536,239.57,239.48,4.1757]
[1732732610064,17.55066536,239.58,239.51,12.55066536]
[1732732610270,6.04118035,239.6,239.53,12.55066536]
[1732732610469,24.08777459,239.63,239.55,12.55066536]
[1732732610669,21.58387459,239.63,239.55,12.55066536]
[1732732610971,9.03320923,239.63,239.57,12.55066536]
[1732732611144,9.03320923,239.63,239.61,12.55066536]
[1732732611345,12.55066536,239.67,239.62,4.1732]
[1732732611651,18.59136932,239.69,239.62,4.1732]
[1732732611863,17.55066536,239.69,239.62,4.1732]
[1732732612642,12.55066536,239.67,239.62,4.1732]
[1732732613368,12.55066536,239.67,239.6,4.1736]
[1732732613569,12.55066536,239.67,239.59,16.72436536]
[1732732613570,20.05406536,239.67,239.59,16.72436536]
[1732732613773,12.55066536,239.66,239.59,16.72436536]
[1732732615578,12.55066536,239.65,239.58,12.55066536]
[1732732615747,12.55066536,239.65,239.57,12.55066536]
[1732732615948,12.55066536,239.65,239.58,12.55066536]
[1732732616149,5.0,239.69,239.61,12.55066536]
[1732732616392,12.55066536,239.67,239.6,12.55066536]
[1732732617174,12.55066536,239.68,239.6,12.55066536]
[1732732617378,12.55066536,239.67,239.6,12.55066536]
[1732732617670,12.55066536,239.67,239.61,4.1734]
[1732732617867,12.55066536,239.68,239.61,4.1734]
[1732732618973,12.55066536,239.67,239.61,4.1734]
[1732732619564,12.55066536,239.65,239.57,4.1741]
[1732732619767,7.5034,239.67,239.57,4.1741]
[1732732619768,12.55066536,239.66,239.59,12.55066536]
[1732732619952,12.55066536,239.67,239.59,12.55066536]
[1732732620460,12.55066536,239.69,239.62,12.55066536]
[1732732620667,12.55066536,239.7,239.63,12.55066536]
[1732732621065,12.55066536,239.7,239.59,0.70424344]
[1732732621066,12.55066536,239.7,239.62,12.55066536]
[1732732621577,12.55066536,239.69,239.62,12.55066536]
[1732732621755,12.55066536,239.7,239.62,12.55066536]
[1732732622078,12.55066536,239.7,239.63,12.55066536]
[1732732622779,12.55066536,239.7,239.64,4.1729]
[1732732624659,12.55066536,239.7,239.61,16.72406536]
[1732732625569,15.05376536,239.7,239.61,16.72406536]
[1732732625755,12.55066536,239.7,239.63,12.55066536]
[1732732626588,12.55066536,239.7,239.59,99.40897356]
[1732732626589,12.55066536,239.72,239.65,12.55066536]
[1732732626761,26.5796279,239.74,239.65,12.55066536]
[1732732626962,26.5796279,239.74,239.67,12.55066536]
[1732732627556,29.0823279,239.74,239.67,12.55066536]
[1732732628157,29.0823279,239.74,239.67,16.72296536]
[1732732629157,5.0,239.69,239.62,12.55066536]
[1732732629361,12.55066536,239.68,239.62,4.1732]
[1732732630279,12.55066536,239.67,239.61,4.1734]
[1732732630659,12.55066536,239.67,239.6,16.4181]
[1732732630864,12.55066536,239.63,239.57,4.1739]
[1732732631073,12.55066536,239.63,239.56,4.1742]
[1732732631275,12.55066536,239.63,239.56,16.72486536]
[1732732631886,12.55066536,239.67,239.59,12.55066536]
[1732732632088,15.05406536,239.67,239.59,12.55066536]
[1732732633270,12.55066536,239.65,239.58,4.1739]
[1732732635570,12.55066536,239.65,239.55,103.95445492]
[1732732635571,12.55066536,239.63,239.55,103.95445492]
[1732732635776,12.55066536,239.63,239.55,108.12875492]
[1732732637081,12.55066536,239.63,239.55,95.57808956]
[1732732637383,12.55066536,239.63,239.55,108.12875492]
[1732732637581,17.55066536,239.65,239.55,108.12875492]
[1732732637776,20.05426536,239.65,239.55,32.49666536]
[1732732637979,20.05426536,239.65,239.57,12.55066536]
[1732732638770,20.05426536,239.65,239.57,16.72466536]
[1732732640377,20.05426536,239.65,239.57,12.55066536]
[1732732640691,20.05426536,239.65,239.57,16.72476536]
[1732732641477,7.29879366,239.69,239.59,12.55066536]
[1732732641478,20.05406536,239.67,239.59,12.55066536]
[1732732642388,20.05406536,239.67,239.59,16.72426536]
[1732732642996,17.55066536,239.65,239.57,12.55066536]
[1732732643602,20.05406536,239.67,239.59,12.55066536]
[1732732643782,20.05396536,239.69,239.61,12.55066536]
[1732732643987,12.74834164,239.72,239.67,12.55066536]
[1732732643988,9.02939759,239.72,239.67,12.55066536]
[1732732644182,9.02939759,239.72,239.69,12.55066536]
[1732732644702,18.59084344,239.81,239.71,12.55066536]
[1732732644894,20.05246536,239.83,239.75,12.55066536]
[1732732645072,20.05226536,239.85,239.78,12.55066536]
[1732732645273,17.55066536,239.83,239.76,12.55066536]
[1732732645869,17.55066536,239.83,239.72,0.70311704]
[1732732645870,17.55066536,239.83,239.74,12.55066536]
[1732732646434,12.55066536,239.81,239.74,12.55066536]
[1732732646694,17.55066536,239.81,239.74,12.55066536]
[1732732646883,17.55066536,239.81,239.72,12.55066536]
[1732732647894,20.05266536,239.81,239.72,12.55066536]
[1732732650210,5.0,239.82,239.76,12.55066536]
[1732732650496,15.05246536,239.83,239.76,12.55066536]
[1732732650874,20.05246536,239.83,239.76,12.55066536]
[1732732651075,20.05246536,239.83,239.74,12.55066536]
[1732732651298,7.5018,239.83,239.74,12.55066536]
[1732732651496,20.05246536,239.83,239.76,12.55066536]
[1732732651795,15.05246536,239.83,239.76,12.55066536]
[1732732652096,2.5018,239.83,239.76,12.55066536]
[1732732652483,2.5015,239.85,239.78,12.55066536]
[1732732653083,7.5015,239.85,239.78,12.55066536]
[1732732653280,12.55066536,239.83,239.76,12.55066536]
[1732732653698,15.05246536,239.83,239.76,12.55066536]
[1732732655886,20.05246536,239.83,239.74,12.55066536]
[1732732656600,12.55066536,239.83,239.74,12.55066536]
[1732732656786,12.55066536,239.87,239.78,12.55066536]
[1732732656988,2.5014,239.86,239.78,12.55066536]
[1732732657310,7.5014,239.86,239.79,0.70249572]
[1732732657511,12.55066536,239.85,239.78,12.55066536]
[1732732657893,12.55066536,239.85,239.76,17.42387061]
[1732732658304,15.05226536,239.85,239.76,17.42387061]
[1732732658605,15.05226536,239.85,239.76,16.72126536]
[1732732659384,12.55066536,239.87,239.8,12.55066536]
[1732732659585,7.5011,239.9,239.84,12.55066536]
[1732732659793,2.5009,239.92,239.86,12.55066536]
[1732732659995,12.55066536,239.93,239.86,12.55066536]
[1732732660314,15.05136536,239.93,239.86,12.55066536]
[1732732661614,12.55066536,239.95,239.88,12.55066536]
[1732732661790,20.05116536,239.95,239.88,12.55066536]
[1732732662185,20.05116536,239.95,239.86,13.25246724]
[1732732662584,15.05116536,239.95,239.86,13.25246724]
[1732732663005,20.05116536,239.95,239.86,13.25246724]
[1732732663395,15.05116536,239.95,239.86,13.25246724]
[1732732663588,15.05116536,239.95,239.88,12.55066536]
[1732732664092,12.55066536,239.95,239.88,12.55066536]
[1732732664488,12.55066536,239.95,239.88,13.25233961]
[1732732664815,15.05116536,239.95,239.88,0.70167425]
[1732732665408,15.05116536,239.95,239.86,16.71966536]
[1732732665719,12.55066536,239.93,239.86,16.71966536]
[1732732666293,15.05136536,239.93,239.84,16.71996536]
[1732732666489,12.55066536,239.91,239.84,16.71996536]
[1732732667216,12.55066536,239.89,239.82,12.55066536]
[1732732667398,12.55066536,239.89,239.8,75.63208956]
[1732732667399,12.55066536,239.89,239.8,88.18275492]
[1732732668090,12.55066536,239.91,239.82,12.55066536]
[1732732668315,12.55066536,239.91,239.82,16.72026536]
[1732732668524,12.55066536,239.91,239.84,12.55066536]
[1732732669101,15.05156536,239.91,239.84,12.55066536]
[1732732669297,20.05136536,239.93,239.84,12.55066536]
[1732732669597,15.05136536,239.93,239.84,12.55066536]
[1732732670114,12.55066536,239.91,239.84,12.55066536]
[1732732670321,12.55066536,239.91,239.82,16.72026536]
[1732732671626,15.05156536,239.91,239.82,16.72026536]
[1732732672416,12.55066536,239.89,239.82,12.55066536]
[1732732672916,2.5008,239.93,239.86,12.55066536]
[1732732673099,12.55066536,239.92,239.84,12.55066536]
[1732732673923,2.5009,239.91,239.84,12.55066536]
[1732732674423,2.5009,239.91,239.84,8.00721199]
[1732732678216,28.00721199,239.93,239.84,4.87147671]
[1732732678404,28.00721199,239.93,239.84,12.17661199]
[1732732678998,8.00721199,239.91,239.82,12.17691199]
[1732732679703,8.00721199,239.91,239.84,8.00721199]
[1732732680421,10.50811199,239.91,239.84,8.00721199]
[1732732680804,15.50811199,239.91,239.84,8.00721199]